[Event "Titled Tuesday Blitz May 9 Early 2023"]
[White "Sadykov, Ramil"]
[Black "Galchenko, Matvey"]
[WhiteFideId "24113590"]
[BlackFideId "24175480"]
[WhiteElo "2245"]
[BlackElo "2423"]
[Result "0-1"]
[Round "03"]
[TimeControl "180+2"]
[Date "2023.05.09"]
[WhiteClock "0:00:00"]
[BlackClock "0:00:07"]

1. Nf3 {[%clk 0:03:00]}  c5 {[%clk 0:02:56]} 2. e4 {[%clk 0:02:59]}  g6 {[%clk 0:02:56]} 3. c4 {[%clk 0:02:56]}  Bg7 {[%clk 0:02:55]} 4. d4 {[%clk 0:02:56]}  cxd4 {[%clk 0:02:56]} 5. Nxd4 {[%clk 0:02:57]}  Nc6 {[%clk 0:02:57]} 6. Be3 {[%clk 0:02:55]}  Nf6 {[%clk 0:02:57]} 7. Nc3 {[%clk 0:02:55]}  O-O {[%clk 0:02:57]} 8. Be2 {[%clk 0:02:53]}  d6 {[%clk 0:02:56]} 9. O-O {[%clk 0:02:52]}  Nxd4 {[%clk 0:02:55]} 10. Bxd4 {[%clk 0:02:52]}  a5 {[%clk 0:02:55]} 11. Rc1 {[%clk 0:02:47]}  Bd7 {[%clk 0:02:53]} 12. Qd2 {[%clk 0:02:41]}  Bc6 {[%clk 0:02:52]} 13. f3 {[%clk 0:02:39]}  a4 {[%clk 0:02:53]} 14. Rfd1 {[%clk 0:02:34]}  Qa5 {[%clk 0:02:50]} 15. Rc2 {[%clk 0:02:09]}  Nd7 {[%clk 0:02:40]} 16. Be3 {[%clk 0:01:57]}  Rfc8 {[%clk 0:02:35]} 17. Rdc1 {[%clk 0:01:41]}  Qd8 {[%clk 0:02:00]} 18. Nd5 {[%clk 0:01:33]}  Bxd5 {[%clk 0:01:13]} 19. cxd5 {[%clk 0:01:21]}  Nc5 {[%clk 0:01:00]} 20. Qb4 {[%clk 0:01:13]}  Qa5 {[%clk 0:00:37]} 21. Qxa5 {[%clk 0:00:58]}  Rxa5 {[%clk 0:00:38]} 22. b4 {[%clk 0:00:47]}  axb3 {[%clk 0:00:38]} 23. axb3 {[%clk 0:00:47]}  Ra3 {[%clk 0:00:39]} 24. Rb1 {[%clk 0:00:20]}  Rca8 {[%clk 0:00:36]} 25. Kf2 {[%clk 0:00:13]}  Ra2 {[%clk 0:00:22]} 26. Rxa2 {[%clk 0:00:11]}  Rxa2 {[%clk 0:00:23]} 27. Kf1 {[%clk 0:00:09]}  Ra3 {[%clk 0:00:16]} 28. Bc4 {[%clk 0:00:06]}  Nd7 {[%clk 0:00:13]} 29. Kf2 {[%clk 0:00:02]}  Ra2+ {[%clk 0:00:13]} 30. Kf1 {[%clk 0:00:02]}  Ne5 {[%clk 0:00:13]} 31. Be2 {[%clk 0:00:02]}  Ra3 {[%clk 0:00:13]} 32. Kf2 {[%clk 0:00:02]}  Ra2 {[%clk 0:00:13]} 33. Kf1 {[%clk 0:00:02]}  h5 {[%clk 0:00:14]} 34. Rc1 {[%clk 0:00:01]}  Rb2 {[%clk 0:00:14]} 35. Rc7 {[%clk 0:00:01]}  Rxb3 {[%clk 0:00:15]} 36. Kf2 {[%clk 0:00:01]}  Bf6 {[%clk 0:00:13]} 37. h3 {[%clk 0:00:01]}  Rb2 {[%clk 0:00:14]} 38. f4 {[%clk 0:00:01]}  Nd3+ {[%clk 0:00:10]} 39. Kf3 {[%clk 0:00:01]}  Ne1+ {[%clk 0:00:09]} 40. Kf2 {[%clk 0:00:00]}  Nc2 {[%clk 0:00:07]} 0-1


[Site "https://www.chess.com"]

[Event "Titled Tuesday Blitz May 9 Early 2023"]
[White "Spitzl, Vinzent"]
[Black "Donchenko, Alexander"]
[WhiteFideId "12901253"]
[BlackFideId "24603295"]
[WhiteElo "2225"]
[BlackElo "2554"]
[Result "1/2-1/2"]
[Round "03"]
[TimeControl "180+2"]
[Date "2023.05.09"]
[WhiteClock "0:00:09"]
[BlackClock "0:00:19"]

1. e4 {[%clk 0:03:00]}  c6 {[%clk 0:02:59]} 2. d4 {[%clk 0:02:59]}  d5 {[%clk 0:03:00]} 3. exd5 {[%clk 0:02:59]}  cxd5 {[%clk 0:03:01]} 4. Bd3 {[%clk 0:02:59]}  Nc6 {[%clk 0:03:01]} 5. c3 {[%clk 0:02:59]}  Qc7 {[%clk 0:03:02]} 6. Ne2 {[%clk 0:02:58]}  Bg4 {[%clk 0:03:02]} 7. h3 {[%clk 0:02:56]}  Bh5 {[%clk 0:02:54]} 8. O-O {[%clk 0:02:55]}  e6 {[%clk 0:02:54]} 9. Qe1 {[%clk 0:02:56]}  Nf6 {[%clk 0:02:54]} 10. Bf4 {[%clk 0:02:55]}  Bd6 {[%clk 0:02:52]} 11. Bxd6 {[%clk 0:02:48]}  Qxd6 {[%clk 0:02:53]} 12. Nd2 {[%clk 0:02:41]}  Bg6 {[%clk 0:02:51]} 13. Bxg6 {[%clk 0:02:36]}  hxg6 {[%clk 0:02:52]} 14. Nc1 {[%clk 0:02:31]}  O-O {[%clk 0:02:42]} 15. Nd3 {[%clk 0:02:30]}  Nd7 {[%clk 0:02:41]} 16. Nf3 {[%clk 0:02:27]}  b5 {[%clk 0:02:40]} 17. a3 {[%clk 0:02:26]}  a5 {[%clk 0:02:39]} 18. b4 {[%clk 0:02:26]}  Nb6 {[%clk 0:02:35]} 19. Nfe5 {[%clk 0:02:12]}  Nxe5 {[%clk 0:02:33]} 20. Qxe5 {[%clk 0:01:53]}  Qxe5 {[%clk 0:02:32]} 21. dxe5 {[%clk 0:01:53]}  Rfc8 {[%clk 0:02:30]} 22. Nc5 {[%clk 0:01:53]}  Na4 {[%clk 0:02:18]} 23. Nxa4 {[%clk 0:01:49]}  bxa4 {[%clk 0:02:19]} 24. Rfc1 {[%clk 0:01:31]}  Kf8 {[%clk 0:02:09]} 25. Rab1 {[%clk 0:01:26]}  Rc7 {[%clk 0:02:05]} 26. Kf1 {[%clk 0:01:22]}  Ke7 {[%clk 0:02:01]} 27. Ke2 {[%clk 0:01:09]}  Kd7 {[%clk 0:02:01]} 28. Kd3 {[%clk 0:01:08]}  Rc4 {[%clk 0:01:52]} 29. f3 {[%clk 0:00:57]}  g5 {[%clk 0:01:49]} 30. bxa5 {[%clk 0:00:57]}  Rxa5 {[%clk 0:01:47]} 31. Rb7+ {[%clk 0:00:55]}  Rc7 {[%clk 0:01:47]} 32. Rxc7+ {[%clk 0:00:50]}  Kxc7 {[%clk 0:01:48]} 33. c4 {[%clk 0:00:50]}  Rc5 {[%clk 0:01:43]} 34. Kd4 {[%clk 0:00:44]}  Kb6 {[%clk 0:01:27]} 35. Rc2 {[%clk 0:00:43]}  dxc4 {[%clk 0:01:18]} 36. Rxc4 {[%clk 0:00:43]}  Rd5+ {[%clk 0:01:18]} 37. Ke4 {[%clk 0:00:43]}  Rd2 {[%clk 0:01:17]} 38. g4 {[%clk 0:00:32]}  Re2+ {[%clk 0:01:15]} 39. Kd4 {[%clk 0:00:32]}  Rh2 {[%clk 0:01:08]} 40. Rxa4 {[%clk 0:00:31]}  Rxh3 {[%clk 0:01:08]} 41. Ke4 {[%clk 0:00:31]}  Rh1 {[%clk 0:01:04]} 42. Ra8 {[%clk 0:00:26]}  Re1+ {[%clk 0:00:59]} 43. Kd4 {[%clk 0:00:27]}  Rd1+ {[%clk 0:00:56]} 44. Ke4 {[%clk 0:00:27]}  Rd7 {[%clk 0:00:54]} 45. a4 {[%clk 0:00:21]}  Kc5 {[%clk 0:00:54]} 46. a5 {[%clk 0:00:19]}  Rd4+ {[%clk 0:00:48]} 47. Ke3 {[%clk 0:00:19]}  Ra4 {[%clk 0:00:47]} 48. Ra7 {[%clk 0:00:18]}  Rf4 {[%clk 0:00:45]} 49. a6 {[%clk 0:00:13]}  Kb6 {[%clk 0:00:44]} 50. Ra8 {[%clk 0:00:09]}  Rc4 {[%clk 0:00:39]} 51. a7 {[%clk 0:00:08]}  Rc3+ {[%clk 0:00:21]} 52. Ke4 {[%clk 0:00:07]}  Rc4+ {[%clk 0:00:21]} 53. Ke3 {[%clk 0:00:08]}  Rc3+ {[%clk 0:00:19]} 54. Ke4 {[%clk 0:00:08]}  Rc4+ {[%clk 0:00:19]} 55. Ke3 {[%clk 0:00:09]} 1/2-1/2


[Site "https://www.chess.com"]

[Event "Titled Tuesday Blitz May 9 Early 2023"]
[White "Mrudul Dehankar"]
[Black "Morefield, Jason"]
[WhiteFideId "25096990"]
[BlackFideId "30920825"]
[WhiteElo "2139"]
[BlackElo "2171"]
[Result "0-1"]
[Round "03"]
[TimeControl "180+2"]
[Date "2023.05.09"]
[WhiteClock "0:00:03"]
[BlackClock "0:00:05"]

1. e4 {[%clk 0:02:56]}  d6 {[%clk 0:02:57]} 2. d4 {[%clk 0:02:55]}  Nf6 {[%clk 0:02:58]} 3. Nc3 {[%clk 0:02:55]}  g6 {[%clk 0:02:58]} 4. Nf3 {[%clk 0:02:55]}  Bg7 {[%clk 0:02:55]} 5. Be2 {[%clk 0:02:53]}  O-O {[%clk 0:02:55]} 6. O-O {[%clk 0:02:53]}  c6 {[%clk 0:02:56]} 7. a4 {[%clk 0:02:52]}  Nbd7 {[%clk 0:02:56]} 8. h3 {[%clk 0:02:52]}  e5 {[%clk 0:02:55]} 9. Be3 {[%clk 0:02:52]}  exd4 {[%clk 0:02:53]} 10. Bxd4 {[%clk 0:01:31]}  Re8 {[%clk 0:02:47]} 11. Re1 {[%clk 0:01:17]}  Qc7 {[%clk 0:02:44]} 12. Bc4 {[%clk 0:01:08]}  Ne5 {[%clk 0:02:43]} 13. Bf1 {[%clk 0:00:52]}  Be6 {[%clk 0:02:40]} 14. Nd2 {[%clk 0:00:47]}  g5 {[%clk 0:02:22]} 15. g3 {[%clk 0:00:38]}  Rad8 {[%clk 0:02:15]} 16. f4 {[%clk 0:00:35]}  gxf4 {[%clk 0:01:53]} 17. gxf4 {[%clk 0:00:35]}  c5 {[%clk 0:01:37]} 18. fxe5 {[%clk 0:00:26]}  cxd4 {[%clk 0:01:34]} 19. Nb5 {[%clk 0:00:26]}  Qc5 {[%clk 0:01:30]} 20. exf6 {[%clk 0:00:18]}  d3+ {[%clk 0:01:30]} 21. Kh1 {[%clk 0:00:18]}  dxc2 {[%clk 0:01:26]} 22. Qf3 {[%clk 0:00:18]}  Bh6 {[%clk 0:01:24]} 23. Nb3 {[%clk 0:00:12]}  Bxb3 {[%clk 0:01:21]} 24. Qxb3 {[%clk 0:00:12]}  Kh8 {[%clk 0:01:11]} 25. Qxf7 {[%clk 0:00:11]}  Rf8 {[%clk 0:01:02]} 26. Qd5 {[%clk 0:00:11]}  Qxd5 {[%clk 0:00:42]} 27. exd5 {[%clk 0:00:11]}  a6 {[%clk 0:00:38]} 28. Nc3 {[%clk 0:00:10]}  c1=Q {[%clk 0:00:38]} 29. Raxc1 {[%clk 0:00:10]}  Bxc1 {[%clk 0:00:39]} 30. Rxc1 {[%clk 0:00:10]}  Rxf6 {[%clk 0:00:40]} 31. Bg2 {[%clk 0:00:08]}  Rf2 {[%clk 0:00:39]} 32. Rb1 {[%clk 0:00:07]}  Rg8 {[%clk 0:00:38]} 33. Bf1 {[%clk 0:00:05]}  Rg6 {[%clk 0:00:25]} 34. Ne4 {[%clk 0:00:05]}  Rf4 {[%clk 0:00:24]} 35. Re1 {[%clk 0:00:05]}  Kg7 {[%clk 0:00:23]} 36. Nc3 {[%clk 0:00:05]}  Kf7 {[%clk 0:00:20]} 37. Bd3 {[%clk 0:00:03]}  Rg3 {[%clk 0:00:18]} 38. Bf1 {[%clk 0:00:03]}  Rb4 {[%clk 0:00:14]} 39. Kh2 {[%clk 0:00:03]}  Rg6 {[%clk 0:00:11]} 40. Re2 {[%clk 0:00:03]}  Rf6 {[%clk 0:00:05]} 41. Bg2 {[%clk 0:00:03]}  Rf5 {[%clk 0:00:03]} 42. Ne4 {[%clk 0:00:04]}  Ke7 {[%clk 0:00:01]} 43. Nc3+ {[%clk 0:00:02]}  Re5 {[%clk 0:00:01]} 44. Rf2 {[%clk 0:00:03]}  h5 {[%clk 0:00:01]} 45. Bf3 {[%clk 0:00:03]}  h4 {[%clk 0:00:01]} 46. Bg4 {[%clk 0:00:03]}  Rd4 {[%clk 0:00:01]} 47. Bf3 {[%clk 0:00:03]}  Rb4 {[%clk 0:00:02]} 48. Bg4 {[%clk 0:00:03]}  b5 {[%clk 0:00:02]} 49. Rg2 {[%clk 0:00:03]}  bxa4 {[%clk 0:00:02]} 50. Rf2 {[%clk 0:00:04]}  Rb3 {[%clk 0:00:03]} 51. Bd1 {[%clk 0:00:03]}  Rb4 {[%clk 0:00:03]} 52. Bxa4 {[%clk 0:00:03]}  Re3 {[%clk 0:00:02]} 53. Bc2 {[%clk 0:00:03]}  Re5 {[%clk 0:00:02]} 54. Bf5 {[%clk 0:00:04]}  Kd8 {[%clk 0:00:02]} 55. Bg4 {[%clk 0:00:04]}  Kc7 {[%clk 0:00:03]} 56. Rc2 {[%clk 0:00:04]}  Kb6 {[%clk 0:00:03]} 57. Rd2 {[%clk 0:00:05]}  a5 {[%clk 0:00:03]} 58. Kg2 {[%clk 0:00:06]}  a4 {[%clk 0:00:04]} 59. Kf2 {[%clk 0:00:06]}  Ka5 {[%clk 0:00:03]} 60. Kf3 {[%clk 0:00:06]}  Rb3 {[%clk 0:00:03]} 61. Kf2 {[%clk 0:00:06]}  a3 {[%clk 0:00:04]} 62. bxa3 {[%clk 0:00:05]}  Rxc3 {[%clk 0:00:04]} 63. Rb2 {[%clk 0:00:05]}  Rxa3 {[%clk 0:00:04]} 64. Rd2 {[%clk 0:00:05]}  Rc3 {[%clk 0:00:03]} 65. Kg2 {[%clk 0:00:05]}  Kb4 {[%clk 0:00:04]} 66. Kf2 {[%clk 0:00:06]}  Kc5 {[%clk 0:00:05]} 67. Bf3 {[%clk 0:00:06]}  Rf5 {[%clk 0:00:05]} 68. Kg2 {[%clk 0:00:03]}  Rfxf3 {[%clk 0:00:05]} 0-1


[Site "https://www.chess.com"]

[Event "Titled Tuesday Blitz May 9 Early 2023"]
[White "Papasimakopoulos, Alexandros"]
[Black "Sousa, Andre Ventura"]
[WhiteFideId "4244125"]
[BlackFideId "1917617"]
[WhiteElo "2359"]
[BlackElo "2333"]
[Result "0-1"]
[Round "03"]
[TimeControl "180+2"]
[Date "2023.05.09"]
[WhiteClock "0:00:04"]
[BlackClock "0:00:15"]

1. d4 {[%clk 0:03:00]}  Nf6 {[%clk 0:03:00]} 2. c4 {[%clk 0:03:00]}  e6 {[%clk 0:03:00]} 3. Nc3 {[%clk 0:02:59]}  d5 {[%clk 0:03:01]} 4. cxd5 {[%clk 0:02:59]}  exd5 {[%clk 0:03:01]} 5. Bg5 {[%clk 0:02:59]}  c6 {[%clk 0:03:01]} 6. e3 {[%clk 0:03:00]}  h6 {[%clk 0:03:02]} 7. Bh4 {[%clk 0:03:00]}  Be7 {[%clk 0:03:02]} 8. Bd3 {[%clk 0:03:00]}  O-O {[%clk 0:03:03]} 9. Qc2 {[%clk 0:03:01]}  Re8 {[%clk 0:03:03]} 10. Nf3 {[%clk 0:03:01]}  Nbd7 {[%clk 0:03:04]} 11. O-O {[%clk 0:03:00]}  Ne4 {[%clk 0:03:05]} 12. Bxe7 {[%clk 0:03:00]}  Qxe7 {[%clk 0:03:05]} 13. Bxe4 {[%clk 0:03:00]}  dxe4 {[%clk 0:03:06]} 14. Nd2 {[%clk 0:03:01]}  Nf6 {[%clk 0:03:06]} 15. Ne2 {[%clk 0:02:52]}  Bd7 {[%clk 0:02:59]} 16. Rab1 {[%clk 0:02:50]}  a5 {[%clk 0:02:58]} 17. a3 {[%clk 0:02:50]}  Nd5 {[%clk 0:02:56]} 18. Nc3 {[%clk 0:02:50]}  Nxc3 {[%clk 0:02:52]} 19. Qxc3 {[%clk 0:02:44]}  a4 {[%clk 0:02:48]} 20. Rfc1 {[%clk 0:02:39]}  Be6 {[%clk 0:02:40]} 21. Qc5 {[%clk 0:02:39]}  Bd5 {[%clk 0:02:34]} 22. Qxe7 {[%clk 0:02:34]}  Rxe7 {[%clk 0:02:34]} 23. Rc5 {[%clk 0:02:34]}  Kf8 {[%clk 0:02:15]} 24. Rbc1 {[%clk 0:02:34]}  Ke8 {[%clk 0:02:03]} 25. Nb1 {[%clk 0:02:34]}  Kd7 {[%clk 0:01:49]} 26. Nc3 {[%clk 0:02:33]}  Bb3 {[%clk 0:01:50]} 27. Ne2 {[%clk 0:02:27]}  g5 {[%clk 0:01:44]} 28. h4 {[%clk 0:02:25]}  f6 {[%clk 0:01:43]} 29. Ng3 {[%clk 0:02:24]}  Bd5 {[%clk 0:01:40]} 30. Nf5 {[%clk 0:02:13]}  Rh7 {[%clk 0:01:37]} 31. h5 {[%clk 0:02:13]}  Ra6 {[%clk 0:01:24]} 32. R1c2 {[%clk 0:02:07]}  Ke6 {[%clk 0:01:19]} 33. g4 {[%clk 0:02:06]}  Rh8 {[%clk 0:01:14]} 34. Kf1 {[%clk 0:02:02]}  Bb3 {[%clk 0:01:09]} 35. Rd2 {[%clk 0:01:58]}  Kd7 {[%clk 0:01:04]} 36. Ke2 {[%clk 0:01:57]}  Be6 {[%clk 0:01:02]} 37. f3 {[%clk 0:01:52]}  Bd5 {[%clk 0:00:50]} 38. fxe4 {[%clk 0:01:28]}  Bxe4 {[%clk 0:00:51]} 39. Ng3 {[%clk 0:01:28]}  Bd5 {[%clk 0:00:47]} 40. e4 {[%clk 0:01:27]}  Re8 {[%clk 0:00:45]} 41. Kd3 {[%clk 0:01:24]}  Ba2 {[%clk 0:00:40]} 42. Rf2 {[%clk 0:01:23]}  Re6 {[%clk 0:00:34]} 43. Rcf5 {[%clk 0:01:08]}  Rb6 {[%clk 0:00:27]} 44. Kc2 {[%clk 0:00:56]}  Rb3 {[%clk 0:00:26]} 45. R2f3 {[%clk 0:00:56]}  Rxf3 {[%clk 0:00:23]} 46. Rxf3 {[%clk 0:00:57]}  Bb3+ {[%clk 0:00:24]} 47. Kd3 {[%clk 0:00:56]}  Ba2 {[%clk 0:00:24]} 48. Rf1 {[%clk 0:00:54]}  b5 {[%clk 0:00:22]} 49. Ke3 {[%clk 0:00:52]}  Bc4 {[%clk 0:00:22]} 50. Rd1 {[%clk 0:00:50]}  Bd5 {[%clk 0:00:22]} 51. Kf3 {[%clk 0:00:47]}  Bb3 {[%clk 0:00:22]} 52. Rd2 {[%clk 0:00:45]}  Ba2 {[%clk 0:00:19]} 53. Nf5 {[%clk 0:00:33]}  Bb1 {[%clk 0:00:20]} 54. Re2 {[%clk 0:00:33]}  c5 {[%clk 0:00:12]} 55. dxc5 {[%clk 0:00:20]}  Re5 {[%clk 0:00:12]} 56. Nxh6 {[%clk 0:00:20]}  Ke6 {[%clk 0:00:12]} 57. Re1 {[%clk 0:00:19]}  Bc2 {[%clk 0:00:12]} 58. Re2 {[%clk 0:00:19]}  Bd1 {[%clk 0:00:12]} 59. Nf5 {[%clk 0:00:18]}  Bxe2+ {[%clk 0:00:13]} 60. Kxe2 {[%clk 0:00:19]}  Rxe4+ {[%clk 0:00:14]} 61. Kf3 {[%clk 0:00:18]}  Re1 {[%clk 0:00:14]} 62. Ng3 {[%clk 0:00:17]}  Rc1 {[%clk 0:00:14]} 63. Ne4 {[%clk 0:00:17]}  f5 {[%clk 0:00:13]} 64. gxf5+ {[%clk 0:00:13]}  Kxf5 {[%clk 0:00:14]} 65. h6 {[%clk 0:00:12]}  g4+ {[%clk 0:00:15]} 66. Ke3 {[%clk 0:00:12]}  Re1+ {[%clk 0:00:15]} 67. Kd4 {[%clk 0:00:08]}  Rxe4+ {[%clk 0:00:16]} 68. Kd5 {[%clk 0:00:09]}  Re5+ {[%clk 0:00:16]} 69. Kd4 {[%clk 0:00:08]}  Re6 {[%clk 0:00:15]} 70. h7 {[%clk 0:00:04]}  Rh6 {[%clk 0:00:15]} 0-1


[Site "https://www.chess.com"]

[Event "Titled Tuesday Blitz May 9 Early 2023"]
[White "Kollars, Dmitrij"]
[Black "Kucuksari, Kaan"]
[WhiteFideId "12909572"]
[BlackFideId "6380166"]
[WhiteElo "2584"]
[BlackElo "2364"]
[Result "1-0"]
[Round "03"]
[TimeControl "180+2"]
[Date "2023.05.09"]
[WhiteClock "0:00:12"]
[BlackClock "0:00:04"]

1. Nf3 {[%clk 0:03:00]}  Nf6 {[%clk 0:03:00]} 2. g3 {[%clk 0:03:00]}  b6 {[%clk 0:02:58]} 3. Bg2 {[%clk 0:02:59]}  Bb7 {[%clk 0:02:59]} 4. O-O {[%clk 0:03:00]}  e6 {[%clk 0:02:59]} 5. d4 {[%clk 0:03:00]}  Be7 {[%clk 0:03:00]} 6. c4 {[%clk 0:02:59]}  O-O {[%clk 0:03:01]} 7. Nc3 {[%clk 0:02:57]}  Ne4 {[%clk 0:03:01]} 8. Bd2 {[%clk 0:02:58]}  d6 {[%clk 0:03:00]} 9. Qc2 {[%clk 0:02:45]}  Nxd2 {[%clk 0:02:56]} 10. Qxd2 {[%clk 0:02:45]}  Nd7 {[%clk 0:02:53]} 11. e4 {[%clk 0:02:43]}  e5 {[%clk 0:02:50]} 12. Rad1 {[%clk 0:02:41]}  Bf6 {[%clk 0:02:45]} 13. d5 {[%clk 0:02:37]}  g6 {[%clk 0:02:40]} 14. h4 {[%clk 0:02:37]}  Bg7 {[%clk 0:02:36]} 15. Bh3 {[%clk 0:02:36]}  Bc8 {[%clk 0:02:19]} 16. Kh2 {[%clk 0:02:33]}  a5 {[%clk 0:02:11]} 17. Ne1 {[%clk 0:02:25]}  f5 {[%clk 0:01:43]} 18. Nd3 {[%clk 0:02:23]}  Nf6 {[%clk 0:01:40]} 19. f3 {[%clk 0:02:16]}  f4 {[%clk 0:01:35]} 20. gxf4 {[%clk 0:02:08]}  Nh5 {[%clk 0:01:13]} 21. f5 {[%clk 0:01:41]}  Qxh4 {[%clk 0:01:14]} 22. Qf2 {[%clk 0:01:41]}  Qxf2+ {[%clk 0:01:09]} 23. Rxf2 {[%clk 0:01:42]}  gxf5 {[%clk 0:01:04]} 24. Rg2 {[%clk 0:01:42]}  fxe4 {[%clk 0:00:59]} 25. Bxc8 {[%clk 0:01:41]}  exd3 {[%clk 0:00:46]} 26. Bg4 {[%clk 0:01:40]}  Nf4 {[%clk 0:00:46]} 27. Rg3 {[%clk 0:01:36]}  Kh8 {[%clk 0:00:30]} 28. Ne4 {[%clk 0:01:35]}  a4 {[%clk 0:00:24]} 29. Bd7 {[%clk 0:01:27]}  a3 {[%clk 0:00:22]} 30. b3 {[%clk 0:01:27]}  Rf7 {[%clk 0:00:21]} 31. Be6 {[%clk 0:01:27]}  Nxe6 {[%clk 0:00:15]} 32. dxe6 {[%clk 0:01:27]}  Re7 {[%clk 0:00:16]} 33. Rxd3 {[%clk 0:01:03]}  Rxe6 {[%clk 0:00:16]} 34. Kg2 {[%clk 0:01:04]}  Rg6 {[%clk 0:00:15]} 35. Rxg6 {[%clk 0:01:01]}  hxg6 {[%clk 0:00:16]} 36. Nc3 {[%clk 0:01:02]}  Bf6 {[%clk 0:00:05]} 37. b4 {[%clk 0:00:56]}  Kg7 {[%clk 0:00:04]} 38. b5 {[%clk 0:00:54]}  Bd8 {[%clk 0:00:03]} 39. Nd5 {[%clk 0:00:49]}  Ra4 {[%clk 0:00:03]} 40. Rc3 {[%clk 0:00:50]}  Kf7 {[%clk 0:00:03]} 41. Kf2 {[%clk 0:00:49]}  Ke6 {[%clk 0:00:04]} 42. Ke2 {[%clk 0:00:50]}  Kd7 {[%clk 0:00:04]} 43. Kd3 {[%clk 0:00:49]}  c6 {[%clk 0:00:05]} 44. bxc6+ {[%clk 0:00:47]}  Kxc6 {[%clk 0:00:06]} 45. Rb3 {[%clk 0:00:48]}  Ra5 {[%clk 0:00:05]} 46. Nb4+ {[%clk 0:00:45]}  Kd7 {[%clk 0:00:06]} 47. Nd5 {[%clk 0:00:45]}  Kc6 {[%clk 0:00:06]} 48. Rb4 {[%clk 0:00:44]}  Bg5 {[%clk 0:00:05]} 49. Rxb6+ {[%clk 0:00:42]}  Kd7 {[%clk 0:00:04]} 50. Rb7+ {[%clk 0:00:43]}  Ke6 {[%clk 0:00:04]} 51. Rb6 {[%clk 0:00:32]}  Be7 {[%clk 0:00:04]} 52. Rb8 {[%clk 0:00:31]}  Bg5 {[%clk 0:00:03]} 53. Rg8 {[%clk 0:00:25]}  Kf7 {[%clk 0:00:03]} 54. Rc8 {[%clk 0:00:23]}  Bc1 {[%clk 0:00:04]} 55. Rc7+ {[%clk 0:00:22]}  Ke6 {[%clk 0:00:03]} 56. Ke4 {[%clk 0:00:21]}  Bg5 {[%clk 0:00:01]} 57. Rh7 {[%clk 0:00:22]}  Bd8 {[%clk 0:00:01]} 58. Rh8 {[%clk 0:00:20]}  Rc5 {[%clk 0:00:01]} 59. Kd3 {[%clk 0:00:16]}  Bg5 {[%clk 0:00:01]} 60. Ra8 {[%clk 0:00:15]}  Kf5 {[%clk 0:00:01]} 61. Rxa3 {[%clk 0:00:15]}  Bf4 {[%clk 0:00:02]} 62. Ra8 {[%clk 0:00:14]}  g5 {[%clk 0:00:02]} 63. a4 {[%clk 0:00:15]}  Ke6 {[%clk 0:00:02]} 64. a5 {[%clk 0:00:14]}  Kd7 {[%clk 0:00:02]} 65. Ra7+ {[%clk 0:00:13]}  Kc8 {[%clk 0:00:02]} 66. a6 {[%clk 0:00:13]}  Ra5 {[%clk 0:00:02]} 67. Nb6+ {[%clk 0:00:14]}  Kd8 {[%clk 0:00:02]} 68. Rd7+ {[%clk 0:00:14]}  Ke8 {[%clk 0:00:02]} 69. a7 {[%clk 0:00:15]}  Ra3+ {[%clk 0:00:01]} 70. Ke4 {[%clk 0:00:15]}  Be3 {[%clk 0:00:02]} 71. Rb7 {[%clk 0:00:14]}  Bxb6 {[%clk 0:00:02]} 72. Rb8+ {[%clk 0:00:15]}  Kd7 {[%clk 0:00:02]} 73. a8=Q {[%clk 0:00:16]}  Rxa8 {[%clk 0:00:02]} 74. Rxa8 {[%clk 0:00:17]}  Bc5 {[%clk 0:00:02]} 75. Rg8 {[%clk 0:00:15]}  Kc6 {[%clk 0:00:03]} 76. Rxg5 {[%clk 0:00:15]}  Kb6 {[%clk 0:00:04]} 77. Kd5 {[%clk 0:00:14]}  Ka5 {[%clk 0:00:05]} 78. Rg6 {[%clk 0:00:13]}  Kb4 {[%clk 0:00:05]} 79. Rxd6 {[%clk 0:00:13]}  Bd4 {[%clk 0:00:04]} 80. Rc6 {[%clk 0:00:12]} 1-0


[Site "https://www.chess.com"]

[Event "Titled Tuesday Blitz May 9 Early 2023"]
[White "Kalajzic, Ivan"]
[Black "Kozak, Adam"]
[WhiteFideId "14506378"]
[BlackFideId "753246"]
[WhiteElo "2203"]
[BlackElo "2469"]
[Result "0-1"]
[Round "03"]
[TimeControl "180+2"]
[Date "2023.05.09"]
[WhiteClock "0:00:12"]
[BlackClock "0:00:09"]

1. d4 {[%clk 0:03:00]}  Nf6 {[%clk 0:02:55]} 2. Nc3 {[%clk 0:03:00]}  d5 {[%clk 0:02:55]} 3. Bg5 {[%clk 0:03:00]}  h6 {[%clk 0:02:54]} 4. Bh4 {[%clk 0:03:00]}  Ne4 {[%clk 0:02:53]} 5. Nxe4 {[%clk 0:02:59]}  dxe4 {[%clk 0:02:53]} 6. e3 {[%clk 0:02:58]}  c6 {[%clk 0:02:52]} 7. Bc4 {[%clk 0:02:54]}  Qa5+ {[%clk 0:02:50]} 8. c3 {[%clk 0:02:52]}  Nd7 {[%clk 0:02:33]} 9. Qb3 {[%clk 0:02:43]}  Qf5 {[%clk 0:02:28]} 10. g4 {[%clk 0:02:38]}  Qg6 {[%clk 0:02:24]} 11. Ne2 {[%clk 0:02:23]}  e6 {[%clk 0:02:23]} 12. h3 {[%clk 0:02:09]}  Nb6 {[%clk 0:02:22]} 13. Nf4 {[%clk 0:02:08]}  Qh7 {[%clk 0:02:21]} 14. Bxe6 {[%clk 0:01:59]}  fxe6 {[%clk 0:02:16]} 15. Nxe6 {[%clk 0:01:59]}  g5 {[%clk 0:02:15]} 16. Bg3 {[%clk 0:01:55]}  Nd5 {[%clk 0:02:02]} 17. Nc5 {[%clk 0:01:39]}  Bxc5 {[%clk 0:02:01]} 18. dxc5 {[%clk 0:01:40]}  Qf7 {[%clk 0:01:56]} 19. O-O-O {[%clk 0:01:38]}  Be6 {[%clk 0:01:56]} 20. c4 {[%clk 0:01:37]}  Nf6 {[%clk 0:01:52]} 21. Rd4 {[%clk 0:01:35]}  O-O {[%clk 0:01:49]} 22. Bd6 {[%clk 0:01:32]}  Rfe8 {[%clk 0:01:48]} 23. h4 {[%clk 0:01:32]}  Nxg4 {[%clk 0:01:43]} 24. hxg5 {[%clk 0:01:30]}  Qxf2 {[%clk 0:01:13]} 25. gxh6 {[%clk 0:01:21]}  Kh7 {[%clk 0:01:10]} 26. Rxe4 {[%clk 0:01:10]}  b5 {[%clk 0:00:42]} 27. Qc3 {[%clk 0:01:03]}  Qf6 {[%clk 0:00:35]} 28. Be5 {[%clk 0:00:54]}  Nxe5 {[%clk 0:00:30]} 29. Rxe5 {[%clk 0:00:55]}  Bxc4 {[%clk 0:00:26]} 30. Qc2+ {[%clk 0:00:37]}  Kh8 {[%clk 0:00:25]} 31. Rf5 {[%clk 0:00:31]}  Qe7 {[%clk 0:00:16]} 32. Qc3+ {[%clk 0:00:31]}  Kh7 {[%clk 0:00:16]} 33. Rh3 {[%clk 0:00:28]}  Rg8 {[%clk 0:00:11]} 34. b3 {[%clk 0:00:25]}  Be6 {[%clk 0:00:10]} 35. Re5 {[%clk 0:00:23]}  Rg6 {[%clk 0:00:10]} 36. Rf3 {[%clk 0:00:23]}  Rag8 {[%clk 0:00:10]} 37. Kb2 {[%clk 0:00:22]}  Qd7 {[%clk 0:00:09]} 38. Rf4 {[%clk 0:00:20]}  a5 {[%clk 0:00:09]} 39. Rd4 {[%clk 0:00:20]}  Qc7 {[%clk 0:00:07]} 40. Rd2 {[%clk 0:00:19]}  b4 {[%clk 0:00:07]} 41. Qd3 {[%clk 0:00:19]}  Qf7 {[%clk 0:00:07]} 42. Qd4 {[%clk 0:00:16]}  Qf6 {[%clk 0:00:07]} 43. Re4 {[%clk 0:00:13]}  Qxd4+ {[%clk 0:00:06]} 44. Rexd4 {[%clk 0:00:14]}  Rxh6 {[%clk 0:00:05]} 45. Rd6 {[%clk 0:00:14]}  Bd5 {[%clk 0:00:04]} 46. Rxh6+ {[%clk 0:00:13]}  Kxh6 {[%clk 0:00:05]} 47. Rh2+ {[%clk 0:00:14]}  Kg7 {[%clk 0:00:05]} 48. Rf2 {[%clk 0:00:13]}  Re8 {[%clk 0:00:05]} 49. a3 {[%clk 0:00:14]}  Rxe3 {[%clk 0:00:05]} 50. axb4 {[%clk 0:00:14]}  Rxb3+ {[%clk 0:00:05]} 51. Kc2 {[%clk 0:00:14]}  Rxb4 {[%clk 0:00:06]} 52. Re2 {[%clk 0:00:15]}  Rb5 {[%clk 0:00:06]} 53. Kc3 {[%clk 0:00:15]}  Rxc5+ {[%clk 0:00:06]} 54. Kd4 {[%clk 0:00:16]}  Rb5 {[%clk 0:00:07]} 55. Ke5 {[%clk 0:00:16]}  Bc4+ {[%clk 0:00:06]} 56. Kd6 {[%clk 0:00:14]}  Bxe2 {[%clk 0:00:07]} 57. Kxc6 {[%clk 0:00:13]}  Kg6 {[%clk 0:00:07]} 58. Kd6 {[%clk 0:00:13]}  Kg5 {[%clk 0:00:08]} 59. Kc6 {[%clk 0:00:12]}  Kg4 {[%clk 0:00:09]} 0-1


[Site "https://www.chess.com"]